Workbook

Sheet Sheet1
B2: TEKİL YÜKLÜ MESNET YAY KATSAYILI ÇELİK BASİT KİRİŞ SEHİM HESABI (inş.müh. Gürcan BERBEROĞLU tel:0532 366 02 04 www.betoncelik.com ) | CF2: Not: Kirişin eğilme dayanımı hesapları için "celik2016_tali_kiris_hesapları" excel dosyasında "profil_kiris_hesabi" sayfasını kullanabilirsiniz.
Q3: Not : sehim hesabında (G + Q) yük terimleri kullanılmalı. | AJ3: Dikkat sadece sarı hücrelere data girilecek.
J4: P = | L4: 15 | N4: KN | CG4: çeşitli I profiller
R5: IPE 600 | BA5: Çelik yönetmelik madde 9.1.(c) uyarınca | CG5: profil | CH5: A(cm²) | CI5: h (mm.) | CJ5: b (mm.) | CK5: s (mm.) | CL5: t (mm.) | CM5: Jx (cm4.)
AM6: kiriş enkesiti | BA6: ( MA = L / 4 mesafedeki gerekli eğilme momentinin mutlak değeri ) | CF6: normal I profiller | CG6: normal I 80 | CH6: 7.57 | CI6: 80 | CJ6: 42 | CK6: 3.9 | CL6: 5.9 | CM6: 77.8
E7: A | Z7: B | BA7: ( MB = L / 2 mesafedeki gerekli eğilme momentinin mutlak değeri ) | CG7: normal I 100 | CH7: 10.6 | CI7: 100 | CJ7: 50 | CK7: 4.5 | CL7: 6.8 | CM7: 171
L8: C | BA8: ( MC = 3 * L / 4 mesafedeki gerekli eğilme momentinin mutlak değeri ) | CG8: normal I 120 | CH8: 14.2 | CI8: 120 | CJ8: 58 | CK8: 5.1 | CL8: 7.7 | CM8: 328
BA9: Mmax= | BC9: =+E15*H16 -> 40 | BF9: KNm | CG9: normal I 140 | CH9: 18.2 | CI9: 140 | CJ9: 66 | CK9: 5.7 | CL9: 8.6 | CM9: 573
G10: k | AA10: k | BA10: MA = | BC10: =IF(BH10<H16,BJ10,BL10) -> 30 | BF10: KNm | BH10: =(O18/4) -> 3 | BJ10: =(E15*BH10) -> 30 | BL10: =(E15*BH10-L4*(BH10-H16)) -> 45 | CG10: normal I 160 | CH10: 22.8 | CI10: 160 | CJ10: 74 | CK10: 6.3 | CL10: 9.5 | CM10: 935
AI11: =INDEX($CI$6:$CI$120,MATCH(R5,$CG$6:$CG$120,0),0) -> 600 | BA11: MB = | BC11: =IF(BH11<H16,BJ11,BL11) -> 30 | BF11: KNm | BH11: =(O18/2) -> 6 | BJ11: =(E15*BH11) -> 60 | BL11: =(E15*BH11-L4*(BH11-H16)) -> 30 | CG11: normal I 180 | CH11: 27.9 | CI11: 180 | CJ11: 82 | CK11: 6.9 | CL11: 10.4 | CM11: 1450
H12: (1.ci bölge) | Q12: (2.ci bölge) | AM12: =INDEX($CK$6:$CK$120,MATCH(R5,$CG$6:$CG$120,0),0) -> 12 | BA12: MC = | BC12: =IF(BH12<H16,BJ12,BL12) -> 15 | BF12: KNm | BH12: =(3*O18/4) -> 9 | BJ12: =(E15*BH12) -> 90 | BL12: =(E15*BH12-L4*(BH12-H16)) -> 15 | CG12: normal I 200 | CH12: 33.4 | CI12: 200 | CJ12: 90 | CK12: 7.5 | CL12: 11.3 | CM12: 2140
BA13: Cb = 12,5 * Mmax / ( 2,5 * Mmax + 3 * MA + 4 * MB + 3 * MC ) | CG13: normal I 220 | CH13: 39.5 | CI13: 220 | CJ13: 98 | CK13: 8.1 | CL13: 12.2 | CM13: 3060
H14: x | O14: z | BA14: eğilme ve kesme tasarımında kullanılacak değerler | CG14: normal I 240 | CH14: 46.1 | CI14: 240 | CJ14: 106 | CK14: 8.7 | CL14: 13.1 | CM14: 4250
D15: A= | E15: =L4*S16/O18 -> 10 | G15: KN | X15: B= | Y15: =+L4-E15 -> 5 | AA15: KN | AP15: =INDEX($CL$6:$CL$120,MATCH(R5,$CG$6:$CG$120,0),0) -> 19 | BA15: Cb = | BC15: =12.5*BC9/(2.5*BC9+3*BC10+4*BC11+3*BC12) -> 1.408450704 | CG15: normal I 260 | CH15: 53.3 | CI15: 260 | CJ15: 113 | CK15: 9.4 | CL15: 14.1 | CM15: 5740
H16: 4 | J16: m | S16: =+O18-H16 -> 8 | U16: m | BA16: Max = | BC16: =+BC9 -> 40 | BF16: KNm | BH16: (max moment) | CG16: normal I 280 | CH16: 61 | CI16: 280 | CJ16: 119 | CK16: 10.1 | CL16: 15.2 | CM16: 7590
BA17: Vmax = | BD17: =MAX(ABS(BD18),ABS(BE18),ABS(BF18)) -> 10 | BG17: KN | BI17: (max kesme kuvveti) | CG17: normal I 300 | CH17: 69 | CI17: 300 | CJ17: 125 | CK17: 10.8 | CL17: 16.2 | CM17: 9800
O18: 12 | Q18: m | AN18: =INDEX($CJ$6:$CJ$120,MATCH(R5,$CG$6:$CG$120,0),0) -> 220 | BD18: =+E15 -> 10 | BE18: =+BD18-L4 -> -5 | BF18: =+BE18+Y15 -> 0 | CG18: normal I 320 | CH18: 77.7 | CI18: 320 | CJ18: 131 | CK18: 11.5 | CL18: 17.3 | CM18: 12510
CG19: normal I 340 | CH19: 86.7 | CI19: 340 | CJ19: 137 | CK19: 12.2 | CL19: 18.3 | CM19: 15700
L20: sınır ve uygunluk şartları : | AJ20: Ix = | AL20: =INDEX($CM$6:$CM$120,MATCH(R5,$CG$6:$CG$120,0),0) -> 92080 | AP20: cm4 | CG20: normal I 360 | CH20: 97 | CI20: 360 | CJ20: 143 | CK20: 13 | CL20: 19.5 | CM20: 19610
J21: ( x = L ; v1' ) = ( z = 0 ; v2' ) | AJ21: E = | AL21: 200000 | AP21: N/mm² | AS21: (kiriş elastisite modülü) | CG21: normal I 380 | CH21: 107 | CI21: 380 | CJ21: 149 | CK21: 13.7 | CL21: 20.5 | CM21: 24010
J22: ( x = L ; v1 ) = ( z = 0 ; v2 ) | AJ22: E * Ix = | AM22: =+AL21*AL20/100000 -> 184160 | AQ22: KNm² | CG22: normal I 400 | CH22: 118 | CI22: 400 | CJ22: 155 | CK22: 14.4 | CL22: 21.6 | CM22: 29210
CG23: normal I 425 | CH23: 132 | CI23: 425 | CJ23: 163 | CK23: 15.3 | CL23: 23 | CM23: 36970
CG24: normal I 450 | CH24: 147 | CI24: 450 | CJ24: 170 | CK24: 16.2 | CL24: 24.3 | CM24: 45850
CG25: normal I 475 | CH25: 163 | CI25: 475 | CJ25: 178 | CK25: 17.1 | CL25: 25.6 | CM25: 46480
CG26: normal I 500 | CH26: 179 | CI26: 500 | CJ26: 185 | CK26: 18 | CL26: 27 | CM26: 68740
CG27: normal I 550 | CH27: 212 | CI27: 550 | CJ27: 200 | CK27: 19 | CL27: 30 | CM27: 99180
CG28: normal I 600 | CH28: 254 | CI28: 600 | CJ28: 215 | CK28: 21.6 | CL28: 32.4 | CM28: 139000
D29: x = 0 ; v1 = va | X29: z = L ; v2 = vb | CF29: IPE profiller | CG29: IPE 80 | CH29: 7.64 | CI29: 80 | CJ29: 46 | CK29: 3.8 | CL29: 5.2 | CM29: 80.1
C30: SEHİM HESABI | CG30: IPE 100 | CH30: 10.3 | CI30: 100 | CJ30: 55 | CK30: 4.1 | CL30: 5.7 | CM30: 171
C31: k= | D31: 30000 | G31: KN/m | J31: (sol mesnet yay katsayısı) | CG31: IPE 120 | CH31: 13.2 | CI31: 120 | CJ31: 64 | CK31: 4.4 | CL31: 6.3 | CM31: 318
C32: k= | D32: 30000 | G32: KN/m | J32: (sağ mesnet yay katsayısı) | CG32: IPE 140 | CH32: 16.4 | CI32: 140 | CJ32: 73 | CK32: 4.7 | CL32: 6.9 | CM32: 541
C33: va = - A * E * Ix / k = | I33: =-E15 -> -10 | K33: * | L33: =+AM22 -> 184160 | P33: / | Q33: =+D31 -> 30000 | T33: = | U33: =I33*L33/Q33 -> -61.38666667 | Y33: (A noktasındaki çökme) | CG33: IPE 160 | CH33: 20.1 | CI33: 160 | CJ33: 82 | CK33: 5 | CL33: 7.4 | CM33: 869
C34: vb = - B * E * Ix / k = | I34: =-Y15 -> -5 | K34: * | L34: =+L33 -> 184160 | P34: / | Q34: =+D32 -> 30000 | T34: = | U34: =I34*L34/Q34 -> -30.69333333 | Y34: (B noktasındaki çökme) | CG34: IPE 180 | CH34: 23.9 | CI34: 180 | CJ34: 91 | CK34: 5.3 | CL34: 8 | CM34: 1320
C35: 1.ci bölgede : | CG35: IPE 200 | CH35: 28.5 | CI35: 200 | CJ35: 100 | CK35: 5.6 | CL35: 8.5 | CM35: 1940
C36: v1'' = | E36: =+E15 -> 10 | G36: * | H36: x | CG36: IPE 220 | CH36: 33.4 | CI36: 220 | CJ36: 110 | CK36: 5.9 | CL36: 9.2 | CM36: 2770
C37: v1' = | E37: =+E36 -> 10 | G37: * | H37: x² | I37: / | J37: 2 | K37: + | L37: C1 | CG37: IPE 240 | CH37: 39.1 | CI37: 240 | CJ37: 120 | CK37: 6.2 | CL37: 9.8 | CM37: 3890
C38: v1 = | E38: =+E37 -> 10 | G38: * | H38: x3 | I38: / | J38: 6 | K38: + | L38: C1 | M38: * | N38: x | O38: + | P38: C2 | CG38: IPE 270 | CH38: 45.9 | CI38: 270 | CJ38: 135 | CK38: 6.6 | CL38: 10.2 | CM38: 5790
C39: 2.ci bölgede : | CG39: IPE 300 | CH39: 53.8 | CI39: 300 | CJ39: 150 | CK39: 7.1 | CL39: 10.7 | CM39: 8360
C40: v2'' = | E40: =+E15 -> 10 | G40: *( | H40: =+H16 -> 4 | J40: + | K40: z | L40: )- | M40: =+L4 -> 15 | O40: * | P40: z | CG40: IPE 330 | CH40: 62.6 | CI40: 330 | CJ40: 160 | CK40: 7.5 | CL40: 11.5 | CM40: 11770
C41: v2' = | E41: =+E40 -> 10 | G41: *( | H41: =+H40 -> 4 | J41: + | K41: z | L41: )² | M41: / | N41: 2 | O41: - | P41: =+M40 -> 15 | R41: * | S41: z² | T41: / | U41: 2 | V41: + | W41: D1 | CG41: IPE 360 | CH41: 72.7 | CI41: 360 | CJ41: 170 | CK41: 8 | CL41: 12.7 | CM41: 16270
C42: v2 = | E42: =+E41 -> 10 | G42: *( | H42: =+H41 -> 4 | J42: + | K42: z | L42: )3 | M42: / | N42: 6 | O42: - | P42: =+P41 -> 15 | R42: * | S42: z3 | T42: / | U42: 6 | V42: + | W42: D1 | X42: * | Y42: z | Z42: + | AA42: D2 | CG42: IPE 400 | CH42: 84.5 | CI42: 400 | CJ42: 180 | CK42: 8.6 | CL42: 13.5 | CM42: 23130
C43: sınır ve uygunluk şartları : | CG43: IPE 450 | CH43: 98.8 | CI43: 450 | CJ43: 190 | CK43: 9.4 | CL43: 14.6 | CM43: 33740
C44: x = 0 ; v1 = va | J44: C2 | K44: = | L44: =U33 -> -61.38666667 | CG44: IPE 500 | CH44: 116 | CI44: 500 | CJ44: 200 | CK44: 10.2 | CL44: 16 | CM44: 48200
C45: z = L ; v2 = vb | J45: =+E42 -> 10 | L45: *( | M45: =+H42 -> 4 | O45: + | P45: =+S16 -> 8 | R45: )3 | S45: / | T45: 6 | U45: - | V45: =+P42 -> 15 | X45: * | Y45: =+P45 -> 8 | AA45: 3/ | AB45: 6 | AC45: + | AD45: D1 | AE45: * | AF45: =+Y45 -> 8 | AH45: + | AI45: D2 | AJ45: = | AK45: =U34 -> -30.69333333 | AP45: D1 | AQ45: * | AR45: =+AF45 -> 8 | AT45: + | AU45: D2 | AV45: + | AW45: =J45*(M45+P45)^3/T45-V45*Y45^3/AB45-AK45 -> 1630.693333 | AZ45: = | BA45: 0 | BC45: (1.ci denklem) | CG45: IPE 550 | CH45: 134 | CI45: 550 | CJ45: 210 | CK45: 11.1 | CL45: 17.2 | CM45: 67120
C46: x = L ; v1' = | G46: =+E37 -> 10 | I46: * | J46: =+H16 -> 4 | L46: ² / | M46: 2 | N46: + | O46: C1 | P46: = | Q46: C1 | R46: + | S46: =+G46*J46^2/M46 -> 80 | CG46: IPE 600 | CH46: 156 | CI46: 600 | CJ46: 220 | CK46: 12 | CL46: 19 | CM46: 92080
C47: z = 0 ; v2' = | G47: =+E41 -> 10 | I47: * | J47: =+H41 -> 4 | L47: ² / | M47: 2 | N47: + | O47: D1 | P47: = | Q47: D1 | R47: + | S47: =+G47*J47^2/M47 -> 80 | CF47: IPBL (HE-A) profiller | CG47: IPBL (HE-A) 100 | CH47: 21.2 | CI47: 96 | CJ47: 100 | CK47: 5 | CL47: 8 | CM47: 349
C48: ( x = L ; v1' ) = ( z = 0 ; v2' ) | M48: C1 | N48: + | O48: =+S46 -> 80 | R48: = | S48: D1 | T48: + | U48: =+S47 -> 80 | Z48: C1 | AA48: - | AB48: D1 | AC48: = | AD48: 0 | AF48: (2.ci denklem) | CG48: IPBL (HE-A) 120 | CH48: 25.3 | CI48: 114 | CJ48: 120 | CK48: 5 | CL48: 8 | CM48: 606
C49: x = L ; v1 = | G49: =+E38 -> 10 | I49: * | J49: =+H16 -> 4 | L49: 3 / | M49: 6 | N49: + | O49: C1 | P49: * | Q49: =+H16 -> 4 | S49: + | T49: =+L44 -> -61.38666667 | W49: = | X49: C1 | Y49: * | Z49: =+Q49 -> 4 | AB49: + | AC49: =+G49*J49^3/M49+T49 -> 45.28 | CG49: IPBL (HE-A) 140 | CH49: 31.4 | CI49: 133 | CJ49: 140 | CK49: 5.5 | CL49: 8.5 | CM49: 1030
C50: z = 0 ; v2 = | G50: =+E42 -> 10 | I50: * | J50: =+H42 -> 4 | L50: 3 / | M50: 6 | N50: + | O50: D2 | P50: = | Q50: D2 | R50: + | S50: =+G50*J50^3/M50 -> 106.6666667 | CG50: IPBL (HE-A) 160 | CH50: 38.8 | CI50: 152 | CJ50: 160 | CK50: 6 | CL50: 9 | CM50: 1670
C51: ( x = L ; v1 ) = ( z = 0 ; v2 ) | M51: C1 | N51: * | O51: =+Z49 -> 4 | Q51: + | R51: =+AC49 -> 45.28 | U51: = | V51: D2 | W51: + | X51: =+S50 -> 106.6666667 | AC51: C1 | AD51: * | AE51: =+O51 -> 4 | AG51: - | AH51: D2 | AI51: + | AJ51: =+R51-X51 -> -61.38666667 | AM51: = | AN51: 0 | AP51: (3.cü denklem) | CG51: IPBL (HE-A) 180 | CH51: 45.3 | CI51: 171 | CJ51: 180 | CK51: 6 | CL51: 9.5 | CM51: 2510
C52: üç adet denklem üç adet bilinmeyen çözülürse : | CG52: IPBL (HE-A) 200 | CH52: 53.8 | CI52: 190 | CJ52: 200 | CK52: 6.5 | CL52: 10 | CM52: 3690
C53: C1 = | E53: =+Q53 -> -130.7755556 | I53: 0 | J53: =+AR45 -> 8 | K53: 1 | L53: =-AW45 -> -1630.693333 | N53: =MINVERSE(I53:K55) -> 0.08333333333 | O53: 0.6666666667 | P53: 0.08333333333 | Q53: =MMULT(N53:P55,L53:L55) -> -130.7755556 | CG53: IPBL (HE-A) 220 | CH53: 64.3 | CI53: 210 | CJ53: 220 | CK53: 7 | CL53: 11 | CM53: 5410
C54: D1 = | E54: =+Q54 -> -130.7755556 | I54: 1 | J54: -1 | K54: 0 | L54: 0 | N54: 0.08333333333 | O54: -0.3333333333 | P54: 0.08333333333 | Q54: -130.7755556 | CG54: IPBL (HE-A) 240 | CH54: 76.8 | CI54: 230 | CJ54: 240 | CK54: 7.5 | CL54: 12 | CM54: 7760
C55: D2 = | E55: -584.4888889 | I55: =+AE51 -> 4 | J55: 0 | K55: -1 | L55: =-AJ51 -> 61.38666667 | N55: 0.3333333333 | O55: 2.666666667 | P55: -0.6666666667 | Q55: -584.4888889 | CG55: IPBL (HE-A) 260 | CH55: 86.8 | CI55: 250 | CJ55: 260 | CK55: 7.5 | CL55: 12.5 | CM55: 10450
C56: 1.ci bölgede elastik eğri denklemi | CG56: IPBL (HE-A) 280 | CH56: 97.3 | CI56: 270 | CJ56: 280 | CK56: 8 | CL56: 13 | CM56: 13670
C57: E * I / 108 * y = | H57: =+E38 -> 10 | J57: * | K57: x3 | L57: / | M57: 6 | N57: + | O57: C1 | P57: * | Q57: x | R57: + | S57: C2 | CG57: IPBL (HE-A) 300 | CH57: 113 | CI57: 290 | CJ57: 300 | CK57: 8.5 | CL57: 14 | CM57: 18260
C58: y = ( | E58: =+E38 -> 10 | G58: * | H58: x3 | I58: / | J58: 6 | K58: + | L58: =+E53 -> -130.7755556 | O58: * | P58: x | Q58: + | R58: =+L44 -> -61.38666667 | U58: ) * 108 / ( E * I ) | CG58: IPBL (HE-A) 320 | CH58: 124 | CI58: 310 | CJ58: 300 | CK58: 9 | CL58: 15.5 | CM58: 22930
C59: x= | D59: 4 | G59: m. ' deki sehim miktarı | P59: =IF(D59<=H16,"","azalt.") ->  | CG59: IPBL (HE-A) 340 | CH59: 133 | CI59: 330 | CJ59: 300 | CK59: 9.5 | CL59: 16.5 | CM59: 27690
C60: y = ( | E60: =+E58 -> 10 | G60: * | H60: =+D59 -> 4 | J60: 3/ | K60: 6 | L60: + | M60: =+L58 -> -130.7755556 | P60: * | Q60: =+D59 -> 4 | S60: + | T60: =+R58 -> -61.38666667 | W60: )* 108 / ( | Z60: =+AL21 -> 200000 | AC60: * | AD60: =+AL20 -> 92080 | AG60: ) | CG60: IPBL (HE-A) 360 | CH60: 143 | CI60: 350 | CJ60: 300 | CK60: 10 | CL60: 17.5 | CM60: 33090
C61: y = | E61: =(E60*H60^3/K60+M60*Q60+T60)*100000000/(Z60*AD60) -> -2.594603726 | H61: mm | CG61: IPBL (HE-A) 400 | CH61: 159 | CI61: 390 | CJ61: 300 | CK61: 11 | CL61: 19 | CM61: 45070
C62: ymax = L / 300 = | H62: =+O18*1000 -> 12000 | K62: / | L62: 300 | N62: = | O62: =+H62/L62 -> 40 | R62: mm | U62: (izin verilebilir çelik kiriş max sehim miktarı) | CG62: IPBL (HE-A) 450 | CH62: 178 | CI62: 440 | CJ62: 300 | CK62: 11.5 | CL62: 21 | CM62: 63720
C63: y= | D63: =+E61 -> -2.594603726 | G63: mm | I63: =IF(ABS(D63)<ABS(M63),"<",">") -> < | J63: ymax = | M63: =+O62 -> 40 | P63: mm | R63: =IF(ABS(D63)<ABS(M63),"uygun.","uygun değil.") -> uygun. | CG63: IPBL (HE-A) 500 | CH63: 198 | CI63: 490 | CJ63: 300 | CK63: 12 | CL63: 23 | CM63: 86970
C64: 2.ci bölgede elastik eğri denklemi | CG64: IPBL (HE-A) 550 | CH64: 212 | CI64: 540 | CJ64: 300 | CK64: 12.5 | CL64: 24 | CM64: 111900
C65: E * I / 108 * y = | H65: =+E42 -> 10 | J65: *( | K65: =+H42 -> 4 | M65: + | N65: z | O65: )3 | P65: / | Q65: 6 | R65: - | S65: =+P42 -> 15 | U65: * | V65: z3 | W65: / | X65: 6 | Y65: + | Z65: D1 | AA65: * | AB65: z | AC65: + | AD65: D2 | CG65: IPBL (HE-A) 600 | CH65: 226 | CI65: 590 | CJ65: 300 | CK65: 13 | CL65: 25 | CM65: 141200
C66: y = ( | E66: =+H65 -> 10 | G66: *( | H66: =+K65 -> 4 | J66: + | K66: z | L66: )3 | M66: / | N66: 6 | O66: - | P66: =+S65 -> 15 | R66: * | S66: z3 | T66: / | U66: 6 | V66: + | W66: =+E54 -> -130.7755556 | Z66: * | AA66: z | AB66: + | AC66: =+E55 -> -584.4888889 | AF66: ) * 108 / ( E * I ) | CG66: IPBL (HE-A) 650 | CH66: 242 | CI66: 640 | CJ66: 300 | CK66: 13.5 | CL66: 26 | CM66: 175200
C67: z= | D67: 1.39 | G67: m. ' deki sehim miktarı | P67: =IF(D67<=S16,"","azalt.") ->  | CG67: IPBL (HE-A) 700 | CH67: 260 | CI67: 690 | CJ67: 300 | CK67: 14.5 | CL67: 27 | CM67: 215300
C68: y = ( | E68: =+E66 -> 10 | G68: *( | H68: =+H66 -> 4 | J68: + | K68: =+D67 -> 1.39 | M68: )3 | N68: / | O68: 6 | P68: - | Q68: =+P66 -> 15 | S68: * | T68: =+K68 -> 1.39 | V68: 3/ | W68: 6 | X68: + | Y68: =+W66 -> -130.7755556 | AB68: * | AC68: =+D67 -> 1.39 | AE68: + | AF68: =+AC66 -> -584.4888889 | AI68: )* 108 / ( | AL68: =+Z60 -> 200000 | AO68: * | AP68: =+AD60 -> 92080 | AS68: ) | CG68: IPBL (HE-A) 800 | CH68: 286 | CI68: 790 | CJ68: 300 | CK68: 15 | CL68: 28 | CM68: 303400
C69: y = | E69: =(E68*(H68+K68)^3/O68-Q68*T68^3/W68+Y68*AC68+AF68)*100000000/(AL68*AP68) -> -2.780170831 | H69: mm | AT69: =+E69 -> -2.780170831 | CG69: IPBL (HE-A) 900 | CH69: 321 | CI69: 890 | CJ69: 300 | CK69: 16 | CL69: 30 | CM69: 422100
C70: ymax = L / 300 = | H70: =O18*1000 -> 12000 | K70: / | L70: 300 | N70: = | O70: =+H70/L70 -> 40 | R70: mm | U70: (izin verilebilir çelik kiriş max sehim miktarı) | CG70: IPBL (HE-A) 1000 | CH70: 347 | CI70: 990 | CJ70: 300 | CK70: 16.5 | CL70: 31 | CM70: 553800
C71: y= | D71: =+E69 -> -2.780170831 | G71: mm | I71: =IF(ABS(D71)<ABS(M71),"<",">") -> < | J71: ymax = | M71: =+O70 -> 40 | P71: mm | R71: =IF(ABS(D71)<ABS(M71),"uygun.","uygun değil.") -> uygun. | CF71: IPB (HE-B) profiller | CG71: IPB (HE-B) 100 | CH71: 26 | CI71: 100 | CJ71: 100 | CK71: 6 | CL71: 10 | CM71: 450
CG72: IPB (HE-B) 120 | CH72: 34 | CI72: 120 | CJ72: 120 | CK72: 6.5 | CL72: 11 | CM72: 864
CG73: IPB (HE-B) 140 | CH73: 43 | CI73: 140 | CJ73: 140 | CK73: 7 | CL73: 12 | CM73: 1510
B74: TEKİL & YAYILI YÜKLÜ MESNET YAY KATSAYILI ÇELİK BASİT KİRİŞ SEHİM HESABI (inş.müh. Gürcan BERBEROĞLU tel:0532 366 02 04 www.betoncelik.com ) | CG74: IPB (HE-B) 160 | CH74: 54.3 | CI74: 160 | CJ74: 160 | CK74: 8 | CL74: 13 | CM74: 2490
Q75: Not : sehim hesabında (G + Q) yük terimleri kullanılmalı. | AJ75: Dikkat sadece sarı hücrelere data girilecek. | CG75: IPB (HE-B) 180 | CH75: 65.3 | CI75: 180 | CJ75: 180 | CK75: 8.5 | CL75: 14 | CM75: 3830
J76: P = | L76: 15 | N76: KN | CG76: IPB (HE-B) 200 | CH76: 78.1 | CI76: 200 | CJ76: 200 | CK76: 9 | CL76: 15 | CM76: 5700
Q77: 20 | S77: KN/m | BA77: Çelik yönetmelik madde 9.1.(c) uyarınca | CG77: IPB (HE-B) 220 | CH77: 91 | CI77: 220 | CJ77: 220 | CK77: 9.5 | CL77: 16 | CM77: 8090
AM78: kiriş enkesiti | BA78: ( MA = L / 4 mesafedeki gerekli eğilme momentinin mutlak değeri ) | CG78: IPB (HE-B) 240 | CH78: 106 | CI78: 240 | CJ78: 240 | CK78: 10 | CL78: 17 | CM78: 11260
E79: A | Z79: B | BA79: ( MB = L / 2 mesafedeki gerekli eğilme momentinin mutlak değeri ) | CG79: IPB (HE-B) 260 | CH79: 118 | CI79: 260 | CJ79: 260 | CK79: 10 | CL79: 17.5 | CM79: 14920
L80: C | BA80: ( MC = 3 * L / 4 mesafedeki gerekli eğilme momentinin mutlak değeri ) | CG80: IPB (HE-B) 280 | CH80: 131 | CI80: 280 | CJ80: 280 | CK80: 10.5 | CL80: 18 | CM80: 19270
Q81: IPE 600 | BA81: Mmax= | BC81: =IF(BH81<H88,BJ81,BN81) -> 390.625 | BF81: KNm | BH81: =E87/Q77 -> 6.5 | BJ81: =E87*BH81-Q77*BH81^2/2 -> 422.5 | BL81: =(E87-L76)/Q77 -> 5.75 | BN81: =E87*BL81-Q77*BL81*BL81/2-L76*(BL81-H88) -> 390.625 | CG81: IPB (HE-B) 300 | CH81: 149 | CI81: 300 | CJ81: 300 | CK81: 11 | CL81: 19 | CM81: 25170
G82: k | AA82: k | BA82: MA = | BC82: =IF(BH82<H88,BJ82,BL82) -> 300 | BF82: KNm | BH82: =(O90/4) -> 3 | BJ82: =E87*BH82-Q77*BH82^2/2 -> 300 | BL82: =E87*BH82-Q77*BH82*BH82/2-L76*(BH82-H88) -> 315 | CG82: IPB (HE-B) 320 | CH82: 161 | CI82: 320 | CJ82: 300 | CK82: 11.5 | CL82: 20.5 | CM82: 30820
AI83: =INDEX($CI$6:$CI$120,MATCH(Q81,$CG$6:$CG$120,0),0) -> 600 | BA83: MB = | BC83: =IF(BH83<H88,BJ83,BL83) -> 390 | BF83: KNm | BH83: =(O90/2) -> 6 | BJ83: =E87*BH83-Q77*BH83^2/2 -> 420 | BL83: =E87*BH83-Q77*BH83*BH83/2-L76*(BH83-H88) -> 390 | CG83: IPB (HE-B) 340 | CH83: 171 | CI83: 340 | CJ83: 300 | CK83: 12 | CL83: 21.5 | CM83: 36660
H84: (1.ci bölge) | Q84: (2.ci bölge) | AM84: =INDEX($CK$6:$CK$120,MATCH(Q81,$CG$6:$CG$120,0),0) -> 12 | BA84: MC = | BC84: =IF(BH84<H88,BJ84,BL84) -> 285 | BF84: KNm | BH84: =(3*O90/4) -> 9 | BJ84: =E87*BH84-Q77*BH84^2/2 -> 360 | BL84: =E87*BH84-Q77*BH84*BH84/2-L76*(BH84-H88) -> 285 | CG84: IPB (HE-B) 360 | CH84: 181 | CI84: 360 | CJ84: 300 | CK84: 12.5 | CL84: 22.5 | CM84: 43190
BA85: Cb = 12,5 * Mmax / ( 2,5 * Mmax + 3 * MA + 4 * MB + 3 * MC ) | CG85: IPB (HE-B) 400 | CH85: 198 | CI85: 400 | CJ85: 300 | CK85: 13.5 | CL85: 24 | CM85: 57680
H86: x | O86: z | BA86: eğilme ve kesme tasarımında kullanılacak değerler | CG86: IPB (HE-B) 450 | CH86: 218 | CI86: 450 | CJ86: 300 | CK86: 14 | CL86: 26 | CM86: 79890
D87: A= | E87: =(L76*S88+Q77*O90*O90/2)/O90 -> 130 | G87: KN | X87: B= | Y87: =+L76+Q77*O90-E87 -> 125 | AA87: KN | AP87: =INDEX($CL$6:$CL$120,MATCH(Q81,$CG$6:$CG$120,0),0) -> 19 | BA87: Cb = | BC87: =12.5*BC81/(2.5*BC81+3*BC82+4*BC83+3*BC84) -> 1.137770334 | CG87: IPB (HE-B) 500 | CH87: 239 | CI87: 500 | CJ87: 300 | CK87: 14.5 | CL87: 28 | CM87: 107200
H88: 4 | J88: m | S88: =+O90-H88 -> 8 | U88: m | BA88: Max = | BC88: =+BC81 -> 390.625 | BF88: KNm | BH88: (max moment) | CG88: IPB (HE-B) 550 | CH88: 254 | CI88: 550 | CJ88: 300 | CK88: 15 | CL88: 29 | CM88: 136700
BA89: Vmax = | BD89: =MAX(ABS(BD90),ABS(BE90),ABS(BF90),ABS(BG90)) -> 130 | BG89: KN | BI89: (max kesme kuvveti) | CG89: IPB (HE-B) 600 | CH89: 270 | CI89: 600 | CJ89: 300 | CK89: 15.5 | CL89: 30 | CM89: 171000
O90: 12 | Q90: m | AN90: =INDEX($CJ$6:$CJ$120,MATCH(Q81,$CG$6:$CG$120,0),0) -> 220 | BD90: =E87 -> 130 | BE90: =+BD90-Q77*H88 -> 50 | BF90: =+BE90-L76 -> 35 | BG90: =+BF90-Q77*S88 -> -125 | CG90: IPB (HE-B) 650 | CH90: 286 | CI90: 650 | CJ90: 300 | CK90: 16 | CL90: 31 | CM90: 210600
CG91: IPB (HE-B) 700 | CH91: 306 | CI91: 700 | CJ91: 300 | CK91: 17 | CL91: 32 | CM91: 256900
M92: sınır ve uygunluk şartları : | AJ92: Ix = | AL92: =INDEX($CM$6:$CM$120,MATCH(Q81,$CG$6:$CG$120,0),0) -> 92080 | AP92: cm4 | CG92: IPB (HE-B) 800 | CH92: 334 | CI92: 800 | CJ92: 300 | CK92: 17.5 | CL92: 33 | CM92: 359100
K93: ( x = L ; v1' ) = ( z = 0 ; v2' ) | AJ93: E = | AL93: 200000 | AP93: N/mm² | AS93: (kiriş elastisite modülü) | CG93: IPB (HE-B) 900 | CH93: 371 | CI93: 900 | CJ93: 300 | CK93: 18.5 | CL93: 35 | CM93: 494100
K94: ( x = L ; v1 ) = ( z = 0 ; v2 ) | AJ94: E * Ix = | AM94: =+AL93*AL92/100000 -> 184160 | AQ94: KNm² | CG94: IPB (HE-B) 1000 | CH94: 400 | CI94: 1000 | CJ94: 300 | CK94: 19 | CL94: 36 | CM94: 644700
CF95: IPBv (HE-M) profiller | CG95: IPBv (HE-M) 100 | CH95: 53.2 | CI95: 120 | CJ95: 106 | CK95: 12 | CL95: 20 | CM95: 1140
CG96: IPBv (HE-M) 120 | CH96: 66.4 | CI96: 140 | CJ96: 126 | CK96: 12.5 | CL96: 21 | CM96: 2020
CG97: IPBv (HE-M) 140 | CH97: 80.6 | CI97: 160 | CJ97: 146 | CK97: 13 | CL97: 22 | CM97: 3290
CG98: IPBv (HE-M) 160 | CH98: 97.1 | CI98: 180 | CJ98: 166 | CK98: 14 | CL98: 23 | CM98: 5100
CG99: IPBv (HE-M) 180 | CH99: 113 | CI99: 200 | CJ99: 186 | CK99: 14.5 | CL99: 24 | CM99: 7480
CG100: IPBv (HE-M) 200 | CH100: 131 | CI100: 220 | CJ100: 206 | CK100: 15 | CL100: 25 | CM100: 10640
C101: x = 0 ; v1 = va | X101: z = L ; v2 = vb | CG101: IPBv (HE-M) 220 | CH101: 149 | CI101: 240 | CJ101: 226 | CK101: 15.5 | CL101: 26 | CM101: 14600
C102: SEHİM HESABI | CG102: IPBv (HE-M) 240 | CH102: 200 | CI102: 270 | CJ102: 248 | CK102: 18 | CL102: 32 | CM102: 24290
C103: k= | D103: 30000 | G103: KN/m | J103: (sol mesnet yay katsayısı) | CG103: IPBv (HE-M) 260 | CH103: 220 | CI103: 290 | CJ103: 268 | CK103: 18 | CL103: 32.5 | CM103: 31310
C104: k= | D104: 30000 | G104: KN/m | J104: (sağ mesnet yay katsayısı) | CG104: IPBv (HE-M) 280 | CH104: 240 | CI104: 310 | CJ104: 288 | CK104: 18.5 | CL104: 33 | CM104: 39550
C105: va = - A * E * Ix / k = | I105: =-E87 -> -130 | K105: * | L105: =+AM94 -> 184160 | P105: / | Q105: =+D103 -> 30000 | T105: = | U105: =I105*L105/Q105 -> -798.0266667 | Y105: (A noktasındaki çökme) | CG105: IPBv (HE-M) 300 | CH105: 303 | CI105: 340 | CJ105: 310 | CK105: 21 | CL105: 39 | CM105: 59200
C106: vb = - B * E * Ix / k = | I106: =-Y87 -> -125 | K106: * | L106: =+L105 -> 184160 | P106: / | Q106: =+D104 -> 30000 | T106: = | U106: =I106*L106/Q106 -> -767.3333333 | Y106: (B noktasındaki çökme) | CG106: IPBv (HE-M) 320/305 | CH106: 225 | CI106: 320 | CJ106: 305 | CK106: 16 | CL106: 29 | CM106: 40950
C107: 1.ci bölgede : | CG107: IPBv (HE-M) 320 | CH107: 312 | CI107: 359 | CJ107: 309 | CK107: 21 | CL107: 40 | CM107: 68130
C108: v1'' = | E108: =+E87 -> 130 | G108: * | H108: x | I108: - | J108: =+Q77 -> 20 | L108: * | M108: x² | N108: / | O108: 2 | CG108: IPBv (HE-M) 340 | CH108: 316 | CI108: 377 | CJ108: 309 | CK108: 21 | CL108: 40 | CM108: 76770
C109: v1' = | E109: =+E108 -> 130 | G109: * | H109: x² | I109: / | J109: 2 | K109: - | L109: =+J108 -> 20 | N109: * | O109: x3 | P109: / | Q109: 6 | R109: + | S109: C1 | CG109: IPBv (HE-M) 360 | CH109: 319 | CI109: 395 | CJ109: 308 | CK109: 21 | CL109: 40 | CM109: 84870
C110: v1 = | E110: =+E109 -> 130 | G110: * | H110: x3 | I110: / | J110: 6 | K110: - | L110: =+L109 -> 20 | N110: * | O110: x4 | P110: / | Q110: 24 | S110: + | T110: C1 | U110: * | V110: x | W110: + | X110: C2 | CG110: IPBv (HE-M) 400 | CH110: 326 | CI110: 432 | CJ110: 307 | CK110: 21 | CL110: 40 | CM110: 104100
C111: 2.ci bölgede : | CG111: IPBv (HE-M) 450 | CH111: 335 | CI111: 478 | CJ111: 307 | CK111: 21 | CL111: 40 | CM111: 131500
C112: v2'' = | E112: =+E87 -> 130 | G112: *( | H112: =+H88 -> 4 | J112: + | K112: z | L112: )- | M112: =+L76 -> 15 | O112: * | P112: z | Q112: - | R112: =+Q77 -> 20 | T112: * | U112: =+H88 -> 4 | W112: *( | X112: =+H88/2 -> 2 | Z112: + | AA112: z | AB112: )- | AC112: =+Q77 -> 20 | AE112: * | AF112: z² | AG112: / | AH112: 2 | CG112: IPBv (HE-M) 500 | CH112: 344 | CI112: 524 | CJ112: 306 | CK112: 21 | CL112: 40 | CM112: 161900
C113: v2' = | E113: =+E112 -> 130 | G113: *( | H113: =+H112 -> 4 | J113: + | K113: z | L113: )² | M113: / | N113: 2 | O113: - | P113: =+M112 -> 15 | R113: * | S113: z² | T113: / | U113: 2 | V113: - | W113: =+R112*U112 -> 80 | Y113: *( | Z113: =+X112 -> 2 | AB113: + | AC113: z | AD113: )² | AE113: / | AF113: 2 | AG113: - | AH113: =+AC112 -> 20 | AJ113: * | AK113: z3 | AL113: / | AM113: 6 | AN113: + | AO113: D1 | CG113: IPBv (HE-M) 550 | CH113: 354 | CI113: 572 | CJ113: 306 | CK113: 21 | CL113: 40 | CM113: 198000
C114: v2 = | E114: =+E113 -> 130 | G114: *( | H114: =+H113 -> 4 | J114: + | K114: z | L114: )3 | M114: / | N114: 6 | O114: - | P114: =+P113 -> 15 | R114: * | S114: z3 | T114: / | U114: 6 | V114: - | W114: =+W113 -> 80 | Y114: *( | Z114: =+Z113 -> 2 | AB114: + | AC114: z | AD114: )3 | AE114: / | AF114: 6 | AG114: - | AH114: =+AH113 -> 20 | AJ114: * | AK114: z4 | AL114: / | AM114: 24 | AO114: + | AP114: D1 | AQ114: * | AR114: z | AS114: + | AT114: D2 | CG114: IPBv (HE-M) 600 | CH114: 364 | CI114: 620 | CJ114: 305 | CK114: 21 | CL114: 40 | CM114: 237400
C115: sınır ve uygunluk şartları : | CG115: IPBv (HE-M) 650 | CH115: 374 | CI115: 668 | CJ115: 305 | CK115: 21 | CL115: 40 | CM115: 281700
C116: x = 0 ; v1 = va | J116: C2 | K116: = | L116: =+U105 -> -798.0266667 | CG116: IPBv (HE-M) 700 | CH116: 383 | CI116: 716 | CJ116: 304 | CK116: 21 | CL116: 40 | CM116: 329300
C117: z = L ; v2 = vb | J117: =+E114 -> 130 | L117: *( | M117: =+H114 -> 4 | O117: + | P117: =+S88 -> 8 | R117: )3 | S117: / | T117: 6 | U117: - | V117: =+P114 -> 15 | X117: * | Y117: =+P117 -> 8 | AA117: 3/ | AB117: 6 | AC117: - | AD117: =+W114 -> 80 | AF117: *( | AG117: =+Z114 -> 2 | AI117: + | AJ117: =+Y117 -> 8 | AL117: )3 | AM117: / | AN117: 6 | AO117: - | AP117: =+AH114 -> 20 | AR117: * | AS117: =+AJ117 -> 8 | AU117: 4 / | AV117: 24 | AX117: + | AY117: D1 | AZ117: * | BA117: =+AS117 -> 8 | BC117: + | BD117: D2 | BE117: = | BF117: =+U106 -> -767.3333333 | BK117: D1 | BL117: * | BM117: =+BA117 -> 8 | BO117: + | BP117: D2 | BQ117: + | BR117: =J117*(M117+P117)^3/T117-V117*Y117^3/AB117-AD117*(AG117+AJ117)^3/AN117-AP117*AS117^4/AV117-BF117 -> 20180.66667 | BU117: = | BV117: 0 | BX117: (1.ci denklem) | CG117: IPBv (HE-M) 800 | CH117: 404 | CI117: 814 | CJ117: 303 | CK117: 21 | CL117: 40 | CM117: 442600
C118: x = L ; v1' = | G118: =+E109 -> 130 | I118: * | J118: =+H88 -> 4 | L118: ² / | M118: 2 | N118: - | O118: =+L109 -> 20 | Q118: * | R118: =+J118 -> 4 | T118: 3 / | U118: 6 | V118: + | W118: C1 | X118: = | Y118: C1 | Z118: + | AA118: =+G118*J118^2/M118-O118*R118^3/U118 -> 826.6666667 | CG118: IPBv (HE-M) 900 | CH118: 424 | CI118: 910 | CJ118: 302 | CK118: 21 | CL118: 40 | CM118: 570400
C119: z = 0 ; v2' = | G119: =+E113 -> 130 | I119: * | J119: =+H113 -> 4 | L119: ² / | M119: 2 | N119: - | O119: =+W113 -> 80 | Q119: * | R119: =+Z113 -> 2 | T119: ² / | U119: 2 | V119: + | W119: D1 | X119: = | Y119: D1 | Z119: + | AA119: =+G119*J119^2/M119-O119*R119^2/U119 -> 880 | CG119: IPBv (HE-M) 1000 | CH119: 444 | CI119: 1008 | CJ119: 302 | CK119: 21 | CL119: 40 | CM119: 772300
C120: ( x = L ; v1' ) = ( z = 0 ; v2' ) | M120: C1 | N120: + | O120: =+AA118 -> 826.6666667 | R120: = | S120: D1 | T120: + | U120: =+AA119 -> 880 | Z120: C1 | AA120: - | AB120: D1 | AC120: + | AD120: =+O120-U120 -> -53.33333333 | AG120: = | AH120: 0 | AJ120: (2.ci denklem) | CG120: YENİ
C121: x = L ; v1 = | G121: =+E110 -> 130 | I121: * | J121: =+H88 -> 4 | L121: 3 / | M121: 6 | N121: - | O121: =+L110 -> 20 | Q121: * | R121: =+J121 -> 4 | T121: 4 / | U121: 24 | W121: + | X121: C1 | Y121: * | Z121: =+H88 -> 4 | AB121: + | AC121: =+L116 -> -798.0266667 | AF121: = | AG121: C1 | AH121: * | AI121: =+Z121 -> 4 | AK121: + | AL121: =G121*J121^3/M121-O121*R121^4/U121+AC121 -> 375.3066667
C122: z = 0 ; v2 = | G122: =+E114 -> 130 | I122: * | J122: =+H114 -> 4 | L122: 3 / | M122: 6 | N122: - | O122: =+W114 -> 80 | Q122: * | R122: =+Z114 -> 2 | T122: 3 / | U122: 6 | V122: + | W122: D2 | X122: = | Y122: D2 | Z122: + | AA122: =G122*J122^3/M122-O122*R122^3/U122 -> 1280
C123: ( x = L ; v1 ) = ( z = 0 ; v2 ) | M123: C1 | N123: * | O123: =+AI121 -> 4 | Q123: + | R123: =+AL121 -> 375.3066667 | U123: = | V123: D2 | W123: + | X123: =+AA122 -> 1280 | AC123: C1 | AD123: * | AE123: =+O123 -> 4 | AG123: - | AH123: D2 | AI123: + | AJ123: =+R123-X123 -> -904.6933333 | AM123: = | AN123: 0 | AP123: (3.cü denklem)
C124: üç adet denklem üç adet bilinmeyen çözülürse :
C125: C1 = | E125: =+R125 -> -1570.775556 | I125: 0 | J125: =+BM117 -> 8 | K125: 1 | L125: =-BR117 -> -20180.66667 | O125: =MINVERSE(I125:K127) -> 0.08333333333 | P125: 0.6666666667 | Q125: 0.08333333333 | R125: =MMULT(O125:Q127,L125:L127) -> -1570.775556
C126: D1 = | E126: =+R126 -> -1624.108889 | I126: 1 | J126: -1 | K126: 0 | L126: =-AD120 -> 53.33333333 | O126: 0.08333333333 | P126: -0.3333333333 | Q126: 0.08333333333 | R126: -1624.108889
C127: D2 = | E127: -7187.795556 | I127: =+AE123 -> 4 | J127: 0 | K127: -1 | L127: =-AJ123 -> 904.6933333 | O127: 0.3333333333 | P127: 2.666666667 | Q127: -0.6666666667 | R127: -7187.795556
C128: 1.ci bölgede elastik eğri denklemi
C129: E * I / 108 * y = | H129: =+E110 -> 130 | J129: * | K129: x3 | L129: / | M129: 6 | N129: - | O129: =+L110 -> 20 | Q129: * | R129: x4 | S129: / | T129: 24 | V129: + | W129: C1 | X129: * | Y129: x | Z129: + | AA129: C2
C130: y = ( | E130: =+H129 -> 130 | G130: * | H130: x3 | I130: / | J130: 6 | K130: - | L130: =+O129 -> 20 | N130: * | O130: x4 | P130: / | Q130: 24 | S130: + | T130: =+E125 -> -1570.775556 | W130: * | X130: x | Y130: + | Z130: =+L116 -> -798.0266667 | AC130: ) * 108 / ( E * I )
C131: x= | D131: 4 | G131: m. ' deki sehim miktarı | P131: =IF(D131<=H88,"","azalt.") -> 
C132: y = ( | E132: =+E130 -> 130 | G132: * | H132: =+D131 -> 4 | J132: 3/ | K132: 6 | L132: - | M132: =+L130 -> 20 | O132: * | P132: =+H132 -> 4 | R132: 4 / | S132: 24 | U132: + | V132: =+T130 -> -1570.775556 | Y132: * | Z132: =+D131 -> 4 | AB132: + | AC132: =+Z130 -> -798.0266667 | AF132: )* 108 / ( | AI132: =+AL93 -> 200000 | AL132: * | AM132: =+AL92 -> 92080 | AP132: )
C133: y = | E133: =(E132*H132^3/K132-M132*P132^4/S132+V132*Z132+AC132)*100000000/(AI132*AM132) -> -32.07968916 | H133: mm
C134: ymax = L / 300 = | H134: =+O90*1000 -> 12000 | K134: / | L134: 300 | N134: = | O134: =+H134/L134 -> 40 | R134: mm | U134: (izin verilebilir çelik kiriş max sehim miktarı)
C135: y= | D135: =+E133 -> -32.07968916 | G135: mm | I135: =IF(ABS(D135)<ABS(M135),"<",">") -> < | J135: ymax = | M135: =+O134 -> 40 | P135: mm | R135: =IF(ABS(D135)<ABS(M135),"uygun.","uygun değil.") -> uygun.
C136: 2.ci bölgede elastik eğri denklemi
C137: E * I / 108 * y = | H137: =+E114 -> 130 | J137: *( | K137: =+H114 -> 4 | M137: + | N137: z | O137: )3 | P137: / | Q137: 6 | R137: - | S137: =+P114 -> 15 | U137: * | V137: z3 | W137: / | X137: 6 | Y137: - | Z137: =+W114 -> 80 | AB137: *( | AC137: =+Z114 -> 2 | AE137: + | AF137: z | AG137: )3 | AH137: / | AI137: 6 | AJ137: - | AK137: =+AH114 -> 20 | AM137: * | AN137: z4 | AO137: / | AP137: 24 | AR137: + | AS137: D1 | AT137: * | AU137: z | AV137: + | AW137: D2
C138: y = ( | E138: =+H137 -> 130 | G138: *( | H138: =+K137 -> 4 | J138: + | K138: z | L138: )3 | M138: / | N138: 6 | O138: - | P138: =+S137 -> 15 | R138: * | S138: z3 | T138: / | U138: 6 | V138: - | W138: =+Z137 -> 80 | Y138: *( | Z138: =+AC137 -> 2 | AB138: + | AC138: z | AD138: )3 | AE138: / | AF138: 6 | AG138: - | AH138: =+AK137 -> 20 | AJ138: * | AK138: z4 | AL138: / | AM138: 24 | AO138: + | AP138: =+E126 -> -1624.108889 | AS138: * | AT138: z | AU138: + | AV138: =+E127 -> -7187.795556 | AY138: ) * 108 / ( E * I )
C139: z= | D139: 1.823 | G139: m. ' deki sehim miktarı | P139: =IF(D139<=S88,"","azalt.") -> 
C140: y = ( | E140: =+E138 -> 130 | G140: *( | H140: =+H138 -> 4 | J140: + | K140: =+D139 -> 1.823 | M140: )3 | N140: / | O140: 6 | P140: - | Q140: =+P138 -> 15 | S140: * | T140: =+K140 -> 1.823 | V140: 3/ | W140: 6 | X140: - | Y140: =+W138 -> 80 | AA140: *( | AB140: =+Z138 -> 2 | AD140: + | AE140: =+T140 -> 1.823 | AG140: )3 | AH140: / | AI140: 6 | AJ140: - | AK140: =+AH138 -> 20 | AM140: * | AN140: =+AE140 -> 1.823 | AP140: 4 / | AQ140: 24 | AS140: + | AT140: =+AP138 -> -1624.108889 | AW140: * | AX140: =+D139 -> 1.823 | AZ140: + | BA140: =+AV138 -> -7187.795556 | BD140: )* 108 / ( | BG140: =+AI132 -> 200000 | BJ140: * | BK140: =+AM132 -> 92080 | BN140: )
C141: y = | E141: =(E140*(H140+K140)^3/O140+Q140*T140^3/W140-Y140*(AB140+AE140)^3/AI140-AK140*AN140^4/AQ140+AT140*AX140+BA140)*100000000/(BG140*BK140) -> -35.89095148 | H141: mm
C142: ymax = L / 300 = | H142: =O90*1000 -> 12000 | K142: / | L142: 300 | N142: = | O142: =+H142/L142 -> 40 | R142: mm | U142: (izin verilebilir çelik kiriş max sehim miktarı)
C143: y= | D143: =+E141 -> -35.89095148 | G143: mm | I143: =IF(ABS(D143)<ABS(M143),"<",">") -> < | J143: ymax = | M143: =+O142 -> 40 | P143: mm | R143: =IF(ABS(D143)<ABS(M143),"uygun.","uygun değil.") -> uygun.
B146: TEKİL & YAYILI YÜKLÜ MESNET YAY KATSAYILI ÇELİK BASİT KİRİŞ SEHİM HESABI (inş.müh. Gürcan BERBEROĞLU tel:0532 366 02 04 www.betoncelik.com )
Q147: Not : sehim hesabında (G + Q) yük terimleri kullanılmalı. | AJ147: Dikkat sadece sarı hücrelere data girilecek.
H148: IPE 600 | W148: P = | Y148: 15 | AA148: KN
Q149: 40 | S149: KN/m | BA149: Çelik yönetmelik madde 9.1.(c) uyarınca
AM150: kiriş enkesiti | BA150: ( MA = L / 4 mesafedeki gerekli eğilme momentinin mutlak değeri )
BA151: ( MB = L / 2 mesafedeki gerekli eğilme momentinin mutlak değeri )
BA152: ( MC = 3 * L / 4 mesafedeki gerekli eğilme momentinin mutlak değeri )
U153: (2.ci bölge) | BA153: Mmax= | BC153: =MAX(ABS(BJ153),ABS(BL153)) -> 67.5 | BF153: KNm | BH153: =E156/Q149 -> 0.15625 | BJ153: =E156*BH153-Q149*BH153^2/2 -> 0.48828125 | BL153: =Q149*U160*U160/2+Y148*U160 -> 67.5
J154: (1.ci bölge) | T154: k | BA154: MA = | BC154: =ABS(BJ154) -> 1.875 | BF154: KNm | BH154: =(K160/4) -> 0.5 | BJ154: =E156*BH154-Q149*BH154^2/2 -> -1.875
H155: x | AI155: =INDEX($CI$6:$CI$120,MATCH(H148,$CG$6:$CG$120,0),0) -> 600 | BA155: MB = | BC155: =ABS(BJ155) -> 13.75 | BF155: KNm | BH155: =(K160/2) -> 1 | BJ155: =E156*BH155-Q149*BH155^2/2 -> -13.75
D156: A= | E156: =(Q149*K160*K160/2-Y148*U160-Q149*U160*U160/2)/K160 -> 6.25 | G156: KN | AM156: =INDEX($CK$6:$CK$120,MATCH(H148,$CG$6:$CG$120,0),0) -> 12 | BA156: MC = | BC156: 35.625 | BF156: KNm | BH156: =(3*K160/4) -> 1.5 | BJ156: =E156*BH156-Q149*BH156^2/2 -> -35.625
BA157: Cb = 12,5 * Mmax / ( 2,5 * Mmax + 3 * MA + 4 * MB + 3 * MC )
U158: z | BA158: Cb = | BC158: =12.5*BC153/(2.5*BC153+3*BC154+4*BC155+3*BC156) -> 2.50929368 | BG158: (1.ci bölge için) | BM158: (2.ci bölge için cb = 1 alınır.)
Q159: B= | R159: =+Y148+Q149*O162-E156 -> 148.75 | T159: KN | AP159: =INDEX($CL$6:$CL$120,MATCH(H148,$CG$6:$CG$120,0),0) -> 19 | BA159: eğilme ve kesme tasarımında kullanılacak değerler
K160: 2 | M160: m | U160: 1.5 | W160: m | BA160: Cb = | BC160: =+BC158 -> 2.50929368
BA161: Max = | BC161: =+BC153 -> 67.5 | BF161: KNm | BH161: (max moment)
O162: =+K160+U160 -> 3.5 | Q162: m | AN162: =INDEX($CJ$6:$CJ$120,MATCH(H148,$CG$6:$CG$120,0),0) -> 220 | BA162: Vmax = | BD162: =MAX(ABS(BD163),ABS(BE163),ABS(BF163),ABS(BG163),ABS(BH163)) -> 75 | BG162: KN | BI162: (max kesme kuvveti)
BD163: =+E156 -> 6.25 | BE163: =+BD163-Q149*K160 -> -73.75 | BF163: =+BE163+R159 -> 75 | BG163: =+BF163-Q149*U160 -> 15 | BH163: =+BG163 -> 15
L164: sınır ve uygunluk şartları : | AJ164: Ix = | AL164: =INDEX($CM$6:$CM$120,MATCH(H148,$CG$6:$CG$120,0),0) -> 92080 | AP164: cm4
P165: ( x = L ; v1' ) = ( z = 0 ; v2' ) | AJ165: E = | AL165: 200000 | AP165: N/mm² | AS165: (kiriş elastisite modülü)
AJ166: E * Ix = | AM166: =+AL165*AL164/100000 -> 184160 | AQ166: KNm²
D169: x = 0 ; v1 = 0
C172: SEHİM HESABI | Q172: z = 0 ; v2 = vb
C173: k= | D173: 30000 | G173: KN/m | J173: (mesnet yay katsayısı)
C174: vb = - B * E * Ix / k = | I174: =-R159 -> -148.75 | K174: * | L174: =+AM166 -> 184160 | P174: / | Q174: =+D173 -> 30000 | T174: = | U174: =I174*L174/Q174 -> -913.1266667 | Y174: (B noktasındaki çökme)
C175: 1.ci bölgede :
C176: v1'' = | E176: =+E156 -> 6.25 | G176: * | H176: x | I176: - | J176: =+Q149 -> 40 | L176: * | M176: x² | N176: / | O176: 2
C177: v1' = | E177: =+E176 -> 6.25 | G177: * | H177: x² | I177: / | J177: 2 | K177: - | L177: =+J176 -> 40 | N177: * | O177: x3 | P177: / | Q177: 6 | R177: + | S177: C1
C178: v1 = | E178: =+E177 -> 6.25 | G178: * | H178: x3 | I178: / | J178: 6 | K178: - | L178: =+L177 -> 40 | N178: * | O178: x4 | P178: / | Q178: 24 | S178: + | T178: C1 | U178: * | V178: x | W178: + | X178: C2
C179: 2.ci bölgede :
C180: v2'' = | E180: =+E156 -> 6.25 | G180: *( | H180: =+K160 -> 2 | J180: + | K180: z | L180: )- | M180: =+Q149 -> 40 | O180: * | P180: =+K160 -> 2 | R180: *( | S180: =+K160/2 -> 1 | U180: + | V180: z | W180: )+ | X180: =+R159 -> 148.75 | Z180: * | AA180: z | AB180: - | AC180: =+Q149 -> 40 | AE180: * | AF180: z² | AG180: / | AH180: 2
C181: v2' = | E181: =+E180 -> 6.25 | G181: *( | H181: =+H180 -> 2 | J181: + | K181: z | L181: )² | M181: / | N181: 2 | O181: - | P181: =+M180*P180 -> 80 | R181: *( | S181: =+S180 -> 1 | U181: + | V181: z | W181: )² | X181: / | Y181: 2 | Z181: + | AA181: =+X180 -> 148.75 | AC181: * | AD181: z² | AE181: / | AF181: 2 | AG181: - | AH181: =+AC180 -> 40 | AJ181: * | AK181: z3 | AL181: / | AM181: 6 | AN181: + | AO181: D1
C182: v2 = | E182: =+E181 -> 6.25 | G182: *( | H182: =+H181 -> 2 | J182: + | K182: z | L182: )3 | M182: / | N182: 6 | O182: - | P182: =+P181 -> 80 | R182: *( | S182: =+S181 -> 1 | U182: + | V182: z | W182: )3 | X182: / | Y182: 6 | Z182: + | AA182: =+AA181 -> 148.75 | AC182: * | AD182: z3 | AE182: / | AF182: 6 | AG182: - | AH182: =+AH181 -> 40 | AJ182: * | AK182: z4 | AL182: / | AM182: 24 | AO182: + | AP182: D1 | AQ182: * | AR182: z | AS182: + | AT182: D2
C183: sınır ve uygunluk şartları :
C184: x = 0 ; v1 = 0 | J184: C2 = 0
C185: z = 0 ; v2 = vb | J185: =+E182 -> 6.25 | L185: * | M185: =+H182 -> 2 | O185: 3 / | P185: 6 | Q185: - | R185: =+P182 -> 80 | T185: * | U185: =+S182 -> 1 | W185: 3 / | X185: 6 | Y185: + | Z185: D2 | AA185: = | AB185: =+U174 -> -913.1266667 | AG185: D2 | AH185: = | AI185: =-(J185*M185^3/P185-R185*U185^3/X185-AB185) -> -908.1266667
C186: x = L ; v1 = vb | J186: =+E178 -> 6.25 | L186: * | M186: =+K160 -> 2 | O186: 3 / | P186: 6 | Q186: - | R186: =+L178 -> 40 | T186: * | U186: =+M186 -> 2 | W186: 4 / | X186: 24 | Z186: + | AA186: C1 | AB186: * | AC186: =+U186 -> 2 | AE186: = | AF186: =+U174 -> -913.1266667 | AK186: C1 | AL186: = | AM186: =-(J186*M186^3/P186-R186*U186^4/X186-AF186)/AC186 -> -447.3966667
C187: x = L ; v1' = | G187: =+E177 -> 6.25 | I187: * | J187: =+K160 -> 2 | L187: ² / | M187: 2 | N187: - | O187: =+L177 -> 40 | Q187: * | R187: =+J187 -> 2 | T187: 3 / | U187: 6 | V187: + | W187: =+AM186 -> -447.3966667 | Z187: = | AA187: =G187*J187^2/M187-O187*R187^3/U187+W187 -> -488.23
C188: z = 0 ; v2' = | G188: =+E181 -> 6.25 | I188: * | J188: =+H181 -> 2 | L188: ² / | M188: 2 | N188: - | O188: =+P181 -> 80 | Q188: * | R188: =+S181 -> 1 | T188: ² / | U188: 2 | V188: + | W188: D1 | X188: = | Y188: D1 | Z188: + | AA188: =G188*J188^2/M188-O188*R188^2/U188 -> -27.5
C189: ( x = L ; v1' ) = ( z = 0 ; v2' ) | M189: D1 | N189: + | O189: =+AA188 -> -27.5 | R189: = | S189: =+AA187 -> -488.23 | X189: D1 | Y189: = | Z189: =+S189-O189 -> -460.73
C190: 1.ci bölgede elastik eğri denklemi
C191: E * I / 108 * y = | H191: =+E178 -> 6.25 | J191: * | K191: x3 | L191: / | M191: 6 | N191: - | O191: =+L178 -> 40 | Q191: * | R191: x4 | S191: / | T191: 24 | V191: + | W191: C1 | X191: * | Y191: x | Z191: + | AA191: C2
C192: y = ( | E192: =+H191 -> 6.25 | G192: * | H192: x3 | I192: / | J192: 6 | K192: - | L192: =+O191 -> 40 | N192: * | O192: x4 | P192: / | Q192: 24 | S192: + | T192: =+AM186 -> -447.3966667 | W192: * | X192: x | Y192: ) * 108 / ( E * I )
C193: x= | D193: 2 | G193: m. ' deki sehim miktarı | P193: =IF(D193<=K160,"","azalt.") -> 
C194: y = ( | E194: =+E192 -> 6.25 | G194: * | H194: =+D193 -> 2 | J194: 3/ | K194: 6 | L194: - | M194: =+L192 -> 40 | O194: * | P194: =+H194 -> 2 | R194: 4 / | S194: 24 | U194: + | V194: =+T192 -> -447.3966667 | Y194: * | Z194: =+D193 -> 2 | AB194: )* 108 / ( | AE194: =+AL165 -> 200000 | AH194: * | AI194: =+AL164 -> 92080 | AL194: )
C195: y = | E195: =(E194*H194^3/K194-M194*P194^4/S194+V194*Z194)*100000000/(AE194*AI194) -> -4.958333333 | H195: mm
C196: ymax = L / 300 = | H196: =+K160*1000 -> 2000 | K196: / | L196: 300 | N196: = | O196: =+H196/L196 -> 6.666666667 | R196: mm | U196: (izin verilebilir çelik kiriş max sehim miktarı)
C197: y= | D197: =+E195 -> -4.958333333 | G197: mm | I197: =IF(ABS(D197)<ABS(M197),"<",">") -> < | J197: ymax = | M197: =+O196 -> 6.666666667 | P197: mm | R197: =IF(ABS(D197)<ABS(M197),"uygun.","uygun değil.") -> uygun.
C198: 2.ci bölgede elastik eğri denklemi
C199: E * I / 108 * y = | H199: =+E182 -> 6.25 | J199: *( | K199: =+H182 -> 2 | M199: + | N199: z | O199: )3 | P199: / | Q199: 6 | R199: - | S199: =+P182 -> 80 | U199: *( | V199: =+S182 -> 1 | X199: + | Y199: z | Z199: )3 | AA199: / | AB199: 6 | AC199: + | AD199: =+AA182 -> 148.75 | AF199: * | AG199: z3 | AH199: / | AI199: 6 | AJ199: - | AK199: =+AH182 -> 40 | AM199: * | AN199: z4 | AO199: / | AP199: 24 | AR199: + | AS199: D1 | AT199: * | AU199: z | AV199: + | AW199: D2
C200: y = ( | E200: =+H199 -> 6.25 | G200: *( | H200: =+K199 -> 2 | J200: + | K200: z | L200: )3 | M200: / | N200: 6 | O200: - | P200: =+S199 -> 80 | R200: *( | S200: =+V199 -> 1 | U200: + | V200: z | W200: )3 | X200: / | Y200: 6 | Z200: + | AA200: =+AD199 -> 148.75 | AC200: * | AD200: z3 | AE200: / | AF200: 6 | AG200: - | AH200: =+AK199 -> 40 | AJ200: * | AK200: z4 | AL200: / | AM200: 24 | AO200: + | AP200: =+Z189 -> -460.73 | AS200: * | AT200: z | AU200: + | AV200: =+AI185 -> -908.1266667 | AY200: ) * 108 / ( E * I )
C201: z= | D201: 1.5 | G201: m. ' deki sehim miktarı | P201: =IF(D201<=U160,"","azalt.") -> 
C202: y = ( | E202: =+E200 -> 6.25 | G202: *( | H202: =+H200 -> 2 | J202: + | K202: =+D201 -> 1.5 | M202: )3 | N202: / | O202: 6 | P202: - | Q202: =+P200 -> 80 | S202: *( | T202: =+S200 -> 1 | V202: + | W202: =+K202 -> 1.5 | Y202: )3 | Z202: / | AA202: 6 | AB202: + | AC202: =+AA200 -> 148.75 | AE202: * | AF202: =+W202 -> 1.5 | AH202: 3/ | AI202: 6 | AJ202: - | AK202: =+AH200 -> 40 | AM202: * | AN202: =+AF202 -> 1.5 | AP202: 4 / | AQ202: 24 | AS202: + | AT202: =+AP200 -> -460.73 | AW202: * | AX202: =+D201 -> 1.5 | AZ202: + | BA202: =+AV200 -> -908.1266667 | BD202: )* 108 / ( | BG202: =+AE194 -> 200000 | BJ202: * | BK202: =+AI194 -> 92080 | BN202: )
C203: y = | E203: =(E202*(H202+K202)^3/O202-Q202*(T202+W202)^3/AA202+AC202*AF202^3/AI202-AK202*AN202^4/AQ202+AT202*AX202+BA202)*100000000/(BG202*BK202) -> -9.164091913 | H203: mm
C204: ymax = L / 150 = | H204: =U160*1000 -> 1500 | K204: / | L204: 150 | N204: = | O204: =+H204/L204 -> 10 | R204: mm | U204: (izin verilebilir çelik kiriş max sehim miktarı)
C205: y= | D205: =+E203 -> -9.164091913 | G205: mm | I205: =IF(ABS(D205)<ABS(M205),"<",">") -> < | J205: ymax = | M205: =+O204 -> 10 | P205: mm | R205: =IF(ABS(D205)<ABS(M205),"uygun.","uygun değil.") -> uygun.
B208: TEKİL & YAYILI YÜKLÜ MESNET YAY KATSAYILI ÇELİK BASİT KİRİŞ SEHİM HESABI (inş.müh. Gürcan BERBEROĞLU tel:0532 366 02 04 www.betoncelik.com )
Q209: Not : sehim hesabında (G + Q) yük terimleri kullanılmalı. | AJ209: Dikkat sadece sarı hücrelere data girilecek.
... 1226 more rows
